fUST/lending_fUST_20250930
["ID","MTS","AMOUNT","RATE_DAILY","PERIOD"]
[388432159,1759167945840,196.326481,0.00022436,2]
[388432163,1759167998091,604.73019962,0.0002152,6]
[388432164,1759167998126,454.45320557,0.00021951,8]
[388432165,1759167998191,755.91274953,0.00021735,8]
[388432166,1759168012343,248.90214498,0.00023335,2]
[388432169,1759168045502,591.2,0.00028767,120]
[388432170,1759168053971,1352.60385386,0.000234,2]
[388432171,1759168077001,3312.90811843,0.000234,2]
[388432268,1759168084913,5000.0,0.000234,2]
[388432490,1759168093559,5000.0,0.000234,2]
[388432524,1759168094628,-181633.91788437,0.00033607,120]
[388432528,1759168094736,-248.90214496,0.00023413,2]
[388433465,1759168131607,157.83828369,0.00023331,2]
[388433875,1759168146962,312.72082741,0.00023333,2]
[388435402,1759168229584,-170.66,0.00023423,10]
[388435403,1759168229614,-517.75355587,0.00023425,2]
[388435405,1759168229641,-269.7412961,0.00023426,2]
[388435406,1759168229670,-300.0,0.0002343,2]
[388435408,1759168229698,-1200.0,0.0002343,2]
[388435409,1759168229725,-300.0,0.0002343,2]
[388435415,1759168230023,-300.0,0.0002343,2]
[388435417,1759168230052,-300.0,0.0002343,2]
[388435418,1759168230079,-300.0,0.0002343,2]
[388435423,1759168230316,-2683.70029606,0.00023431,2]
[388435425,1759168230340,-10000.01,0.00023431,2]
[388435426,1759168230354,-1002.70931192,0.00023431,2]
[388435427,1759168230363,-576.24976472,0.00023431,2]
[388435428,1759168230373,-1200.0,0.00023431,2]
[388435429,1759168230382,-618.18898626,0.00023431,2]
[388435431,1759168230392,-500.0,0.00023431,2]
[388435432,1759168230401,-500.0,0.00023431,2]
[388435433,1759168230412,-500.0,0.00023431,2]
[388435434,1759168230422,-500.0,0.00023431,2]
[388435435,1759168230431,-500.0,0.00023431,2]
[388435436,1759168230441,-500.0,0.00023431,2]
[388435438,1759168230449,-500.0,0.00023431,2]
[388435439,1759168230459,-500.0,0.00023431,2]
[388435440,1759168230469,-500.0,0.00023431,2]
[388435441,1759168230478,-500.0,0.00023431,2]
[388435442,1759168230487,-500.0,0.00023431,2]
[388435443,1759168230496,-500.0,0.00023431,2]
[388435445,1759168230506,-500.0,0.00023431,2]
[388435446,1759168230515,-102.8619371,0.00023431,2]
[388435447,1759168230530,-397.1380629,0.00023431,2]
[388435448,1759168230539,-500.0,0.00023431,2]
[388435449,1759168230548,-500.0,0.00023431,2]
[388435451,1759168230558,-182.67423425,0.00023431,2]
[388435452,1759168230567,-500.0,0.00023431,2]
[388435453,1759168230578,-500.0,0.00023431,2]
[388435454,1759168230588,-500.0,0.00023431,2]
[388435455,1759168230597,-500.0,0.00023431,2]
[388435456,1759168230607,-500.0,0.00023431,2]
[388435457,1759168230617,-500.0,0.00023431,2]
[388435459,1759168230626,-500.0,0.00023431,2]
[388435460,1759168230635,-500.0,0.00023431,2]
[388435461,1759168230644,-500.0,0.00023431,2]
[388435462,1759168230654,-500.0,0.00023431,2]
[388435463,1759168230664,-500.0,0.00023431,2]
[388435464,1759168230674,-500.0,0.00023431,2]
[388435465,1759168230683,-500.0,0.00023431,2]
[388435467,1759168230693,-500.0,0.00023431,2]
[388435468,1759168230703,-500.0,0.00023431,2]
[388435469,1759168230712,-421.79044223,0.00023431,2]
[388435470,1759168230723,-498.40726062,0.00023431,2]
[388435492,1759168232064,-1.59273938,0.00023431,2]
[388435494,1759168232075,-500.0,0.00023431,2]
[388435495,1759168232085,-500.0,0.00023431,2]
[388435496,1759168232095,-500.0,0.00023431,2]
[388435497,1759168232105,-500.0,0.00023431,2]
[388435498,1759168232115,-500.0,0.00023431,2]
[388435499,1759168232125,-500.0,0.00023431,2]
[388435501,1759168232135,-500.0,0.00023431,2]
[388435502,1759168232144,-500.0,0.00023431,2]
[388435503,1759168232154,-500.0,0.00023431,2]
[388435504,1759168232165,-226.43673454,0.00023431,2]
[388435506,1759168232176,-500.0,0.00023431,2]
[388435508,1759168232185,-500.0,0.00023431,2]
[388435510,1759168232196,-500.0,0.00023431,2]
[388435513,1759168232206,-500.0,0.00023431,2]
[388435515,1759168232217,-500.0,0.00023431,2]
[388435516,1759168232227,-500.0,0.00023431,2]
[388435517,1759168232237,-500.0,0.00023431,2]
[388435518,1759168232248,-500.0,0.00023431,2]
[388435519,1759168232258,-500.0,0.00023431,2]
[388435521,1759168232268,-500.0,0.00023431,2]
[388435522,1759168232279,-500.0,0.00023431,2]
[388435523,1759168232288,-500.0,0.00023431,2]
[388435524,1759168232299,-500.0,0.00023431,2]
[388435525,1759168232309,-500.0,0.00023431,2]
[388435526,1759168232319,-176.90600805,0.00023431,2]
[388435528,1759168232329,-500.0,0.00023431,2]
[388435529,1759168232339,-233.79971844,0.00023431,2]
[388435530,1759168232350,-500.0,0.00023431,2]
[388435531,1759168232360,-500.0,0.00023431,2]
[388435532,1759168232371,-500.0,0.00023431,2]
[388435533,1759168232381,-500.0,0.00023431,2]
[388435535,1759168232391,-500.0,0.00023431,2]
[388435536,1759168232402,-339.51701547,0.00023431,2]
[388435537,1759168232414,-424.69968929,0.00023431,2]
[388435538,1759168232428,-75.30031071,0.00023431,2]
[388435539,1759168232438,-500.0,0.00023431,2]
[388435540,1759168232448,-500.0,0.00023431,2]
[388435542,1759168232458,-500.0,0.00023431,2]
[388435543,1759168232468,-459.69969691,0.00023431,2]
[388435544,1759168232479,-40.30030309,0.00023431,2]
[388435545,1759168232489,-500.0,0.00023431,2]
[388435546,1759168232499,-500.0,0.00023431,2]
[388435547,1759168232510,-500.0,0.00023431,2]
[388435548,1759168232519,-480.0,0.00023431,2]
[388435549,1759168232529,-480.0,0.00023431,2]
[388435550,1759168232540,-579.9,0.00023431,2]
[388435551,1759168232549,-480.0,0.00023431,2]
[388435552,1759168232559,-481.55922695,0.00023431,2]
[388435553,1759168232569,-480.0,0.00023431,2]
[388435554,1759168232579,-402.44722605,0.00023431,2]
[388435555,1759168232588,-480.0,0.00023431,2]
[388435556,1759168232598,-480.0,0.00023431,2]
[388435557,1759168232607,-480.0,0.00023431,2]
[388435558,1759168232616,-480.0,0.00023431,2]
[388435559,1759168232627,-480.0,0.00023432,2]
[388435560,1759168232636,-480.0,0.00023432,2]
[388435561,1759168232647,-263.63956706,0.00023432,2]
[388435562,1759168232658,-645.29,0.00023432,2]
[388435563,1759168232667,-772.85,0.00023432,2]
[388435564,1759168232677,-480.0,0.00023432,2]
[388435565,1759168232687,-566.89362169,0.00023432,2]
[388435566,1759168232697,-480.0,0.00023432,2]
[388435567,1759168232706,-480.0,0.00023432,2]
[388435568,1759168232715,-480.0,0.00023432,2]
[388435569,1759168232725,-480.0,0.00023432,2]
[388435570,1759168232734,-590.03,0.00023432,2]
[388435571,1759168232744,-853.2,0.00023432,2]
[388435572,1759168232754,-1233.94,0.00023432,2]
[388435573,1759168232765,-909.78,0.00023432,2]
[388435575,1759168232774,-480.0,0.00023432,2]
[388435576,1759168232784,-609.1,0.00023432,2]
[388435577,1759168232794,-480.0,0.00023432,2]
[388435578,1759168232803,-500.0,0.00023432,2]
[388435579,1759168232813,-1622.82,0.00023432,2]
[388435580,1759168232824,-480.0,0.00023432,2]
[388435582,1759168232833,-480.0,0.00023432,2]
[388435583,1759168232844,-1867.12,0.00023432,2]
[388435584,1759168232853,-486.3,0.00023432,2]
[388435585,1759168232863,-520.07,0.00023432,2]
[388435586,1759168232877,-681.36,0.00023432,2]
[388435587,1759168232888,-480.0,0.00023432,2]
[388435589,1759168232898,-499.49,0.00023432,2]
[388435590,1759168232909,-1286.58,0.00023432,2]
[388435591,1759168232919,-8064.19,0.00023432,2]
[388435592,1759168232929,-1159.31,0.00023432,2]
[388435593,1759168232940,-2204.55,0.00023432,2]
[388435594,1759168232950,-1859.67,0.00023432,2]
[388435596,1759168232960,-480.0,0.00023432,2]
[388435597,1759168232969,-2569.86,0.00023432,2]
[388435598,1759168232979,-480.0,0.00023432,2]
[388435599,1759168232989,-480.0,0.00023433,2]
[388435600,1759168232999,-480.0,0.00023433,2]
[388435601,1759168233009,-480.0,0.00023433,2]
[388435603,1759168233019,-321.30724347,0.00023433,2]
[388435604,1759168233029,-480.0,0.00023433,2]
[388435605,1759168233040,-480.0,0.00023433,2]
[388435606,1759168233050,-480.0,0.00023433,2]
[388435607,1759168233060,-480.0,0.00023433,2]
[388435608,1759168233072,-556.63,0.00023433,2]
[388435610,1759168233081,-480.0,0.00023433,2]
[388435611,1759168233091,-532.76,0.00023433,2]
[388435612,1759168233101,-480.0,0.00023433,2]
[388435613,1759168233111,-480.0,0.00023433,2]
[388435614,1759168233122,-480.0,0.00023433,2]
[388435615,1759168233131,-496.03,0.00023433,2]
[388435616,1759168233141,-480.0,0.00023433,2]
[388435618,1759168233150,-480.0,0.00023433,2]
[388435619,1759168233160,-562.62,0.00023433,2]
[388435620,1759168233170,-480.0,0.00023433,2]
[388435621,1759168233180,-480.0,0.00023433,2]
[388435622,1759168233190,-480.0,0.00023433,2]
[388435623,1759168233200,-480.0,0.00023433,2]
[388435625,1759168233209,-365.54173211,0.00023433,2]
[388435626,1759168233218,-500.0,0.00023433,2]
[388435627,1759168233228,-578.96830019,0.00023433,2]
[388435628,1759168233238,-392.04179657,0.00023433,2]
[388435629,1759168233248,-480.56,0.00023434,2]
[388435630,1759168233257,-480.0,0.00023434,2]
[388435632,1759168233266,-480.0,0.00023434,2]
[388435633,1759168233275,-480.0,0.00023434,2]
[388435634,1759168233285,-500.0,0.00023434,2]
[388435635,1759168233294,-480.0,0.00023434,2]
[388435636,1759168233303,-520.06,0.00023434,2]
[388435637,1759168233313,-538.7,0.00023434,2]
[388435639,1759168233323,-562.67,0.00023434,2]
[388435640,1759168233332,-862.61,0.00023434,2]
[388435641,1759168233343,-480.0,0.00023434,2]
[388435642,1759168233353,-480.0,0.00023434,2]
[388435643,1759168233362,-1973.05,0.00023434,2]
[388435644,1759168233372,-3223.83,0.00023434,2]
[388435646,1759168233381,-480.0,0.00023434,2]
[388435647,1759168233390,-480.0,0.00023434,2]
[388435648,1759168233400,-480.0,0.00023434,2]
[388435649,1759168233410,-480.0,0.00023434,2]
[388435650,1759168233420,-480.0,0.00023434,2]
[388435651,1759168233430,-1336.31,0.00023434,2]
[388435653,1759168233439,-480.0,0.00023434,2]
[388435654,1759168233448,-480.0,0.00023434,2]
[388435655,1759168233458,-3856.73,0.00023434,2]
[388435656,1759168233467,-480.0,0.00023434,2]
[388435657,1759168233477,-977.73,0.00023434,2]
[388435658,1759168233486,-1074.64,0.00023434,2]
[388435660,1759168233496,-480.0,0.00023434,2]
[388435661,1759168233505,-480.0,0.00023434,2]
[388435662,1759168233514,-1949.36,0.00023434,2]
[388435663,1759168233523,-668.23,0.00023435,2]
[388435664,1759168233533,-480.0,0.00023435,2]
[388435665,1759168233542,-945.08,0.00023435,2]
[388435667,1759168233551,-620.16,0.00023435,2]
[388435668,1759168233563,-480.0,0.00023435,2]
[388435669,1759168233574,-850.4,0.00023435,2]
[388435670,1759168233588,-380.0,0.00023435,2]
[388435671,1759168233598,-480.0,0.00023435,2]
[388435672,1759168233606,-480.0,0.00023435,2]
[388435674,1759168233615,-480.0,0.00023435,2]
[388435675,1759168233625,-480.0,0.00023435,2]
[388435676,1759168233634,-480.0,0.00023435,2]
[388435677,1759168233643,-480.0,0.00023435,2]
[388435678,1759168233653,-786.93,0.00023435,2]
[388435679,1759168233665,-480.0,0.00023435,2]
[388435681,1759168233674,-480.0,0.00023435,2]
[388435682,1759168233688,-369.23758118,0.00023435,2]
[388435683,1759168233699,-480.0,0.00023435,2]
[388435684,1759168233710,-557.21,0.00023435,2]
[388435685,1759168233719,-480.0,0.00023435,2]
[388435686,1759168233730,-480.0,0.00023435,2]
[388435688,1759168233740,-480.0,0.00023435,2]
[388435689,1759168233750,-591.3,0.00023435,2]
[388435690,1759168233759,-480.0,0.00023435,2]
[388435691,1759168233768,-652.15,0.00023435,2]
[388435692,1759168233778,-480.0,0.00023435,2]
[388435693,1759168233787,-480.0,0.00023435,2]
[388435695,1759168233797,-480.0,0.00023435,2]
[388435696,1759168233810,-480.0,0.00023435,2]
[388435697,1759168233823,-480.0,0.00023435,2]
[388435698,1759168233833,-480.0,0.00023435,2]
[388435699,1759168233843,-480.0,0.00023435,2]
[388435701,1759168233853,-623.62395589,0.00023435,2]
[388435702,1759168233863,-480.0,0.00023435,2]
[388435703,1759168233879,-480.0,0.00023435,2]
[388435704,1759168233889,-480.0,0.00023435,2]
[388435705,1759168233899,-480.0,0.00023435,2]
[388435706,1759168233910,-480.0,0.00023435,2]
[388435708,1759168233920,-480.0,0.00023435,2]
[388435709,1759168233929,-783.65,0.00023435,2]
[388435710,1759168233940,-480.0,0.00023435,2]
[388435711,1759168233952,-480.0,0.00023435,2]
[388435712,1759168233962,-480.0,0.00023435,2]
[388435713,1759168233971,-282.47934986,0.00023435,2]
[388435715,1759168233980,-527.15,0.00023435,2]
[388435716,1759168233989,-480.0,0.00023435,2]
[388435717,1759168233998,-480.0,0.00023435,2]
[388435718,1759168234007,-480.0,0.00023435,2]
[388435719,1759168234017,-595.24,0.00023435,2]
[388435720,1759168234027,-598.36,0.00023435,2]
[388435722,1759168234036,-480.0,0.00023435,2]
[388435723,1759168234046,-1192.59,0.00023435,2]
[388435724,1759168234056,-556.82,0.00023435,2]
[388435725,1759168234065,-480.0,0.00023435,2]
[388435726,1759168234074,-480.0,0.00023435,2]
[388435727,1759168234084,-480.0,0.00023435,2]
[388435729,1759168234094,-480.0,0.00023435,2]
[388435730,1759168234103,-480.0,0.00023435,2]
[388435731,1759168234112,-480.0,0.00023435,2]
[388435732,1759168234121,-480.0,0.00023435,2]
[388435733,1759168234131,-480.0,0.00023435,2]
[388435734,1759168234141,-480.0,0.00023435,2]
[388435736,1759168234150,-823.86,0.00023435,2]
[388435737,1759168234161,-480.0,0.00023435,2]
[388435738,1759168234170,-480.0,0.00023435,2]
[388435739,1759168234179,-480.0,0.00023435,2]
[388435740,1759168234189,-480.0,0.00023435,2]
[388435741,1759168234199,-480.0,0.00023435,2]
[388435743,1759168234209,-854.92,0.00023435,2]
[388435744,1759168234218,-480.0,0.00023435,2]
[388435745,1759168234227,-480.0,0.00023435,2]
[388435746,1759168234237,-480.0,0.00023435,2]
[388435747,1759168234247,-480.0,0.00023435,2]
[388435748,1759168234256,-480.0,0.00023435,2]
[388435749,1759168234266,-537.4,0.00023435,2]
[388435751,1759168234275,-480.0,0.00023435,2]
[388435752,1759168234285,-498.05,0.00023435,2]
[388435753,1759168234294,-481.56382778,0.00023435,2]
[388435754,1759168234303,-480.0,0.00023435,2]
[388435755,1759168234313,-1909.08,0.00023435,2]
[388435756,1759168234323,-1094.55,0.00023435,2]
[388435758,1759168234332,-553.82,0.00023435,2]
[388435759,1759168234342,-480.0,0.00023435,2]
[388435760,1759168234351,-480.0,0.00023435,2]
[388435761,1759168234362,-480.0,0.00023435,2]
[388435766,1759168234609,-480.0,0.00023435,2]
[388435768,1759168234620,-480.0,0.00023435,2]
[388435769,1759168234630,-218.61128393,0.00023435,2]
[388435770,1759168234639,-480.0,0.00023435,2]
[388435771,1759168234649,-315.90706961,0.00023435,2]
[388435772,1759168234659,-1636.92,0.00023435,2]
[388435773,1759168234669,-449.33448472,0.00023435,2]
[388435775,1759168234679,-480.0,0.00023435,2]
[388435776,1759168234688,-632.44,0.00023435,2]
[388435777,1759168234697,-480.0,0.00023435,2]
[388435778,1759168234707,-2051.99,0.00023435,2]
[388435779,1759168234717,-980.66,0.00023435,2]
[388435780,1759168234726,-610.06,0.00023435,2]
[388435782,1759168234736,-566.8,0.00023435,2]
[388435783,1759168234746,-480.0,0.00023435,2]
[388435784,1759168234756,-1236.58,0.00023435,2]
[388435785,1759168234766,-637.44,0.00023435,2]
[388435786,1759168234775,-480.0,0.00023435,2]
[388435787,1759168234785,-313.4461521,0.00023435,2]
[388435789,1759168234795,-737.44,0.00023435,2]
[388435790,1759168234804,-500.0,0.00023435,2]
[388435791,1759168234813,-500.0,0.00023435,2]
[388435792,1759168234822,-480.0,0.00023435,2]
[388435793,1759168234832,-597.17,0.00023435,2]
[388435794,1759168234841,-1053.96,0.00023435,2]
[388435796,1759168234850,-820.22,0.00023435,2]
[388435797,1759168234860,-480.0,0.00023435,2]
[388435798,1759168234873,-2105.91,0.00023435,2]
[388435799,1759168234883,-480.0,0.00023435,2]
[388435800,1759168234893,-496.18,0.00023435,2]
[388435801,1759168234902,-480.0,0.00023435,2]
[388435803,1759168234914,-4624.01,0.00023435,2]
[388435804,1759168234924,-480.0,0.00023435,2]
[388435805,1759168234934,-541.33,0.00023435,2]
[388435806,1759168234944,-480.0,0.00023435,2]
[388435807,1759168234954,-480.0,0.00023435,2]
[388435808,1759168234964,-522.35,0.00023435,2]
[388435810,1759168234974,-763.64,0.00023435,2]
[388435811,1759168234984,-2112.74,0.00023435,2]
[388435812,1759168234994,-490.55,0.00023435,2]
[388435813,1759168235004,-480.0,0.00023435,2]
[388435814,1759168235013,-480.0,0.00023435,2]
[388435815,1759168235023,-480.0,0.00023435,2]
[388435816,1759168235032,-480.0,0.00023435,2]
[388435818,1759168235041,-571.99,0.00023435,2]
[388435819,1759168235051,-840.65,0.00023435,2]
[388435820,1759168235061,-1096.96,0.00023435,2]
[388435821,1759168235073,-1798.69,0.00023435,2]
[388435822,1759168235084,-480.0,0.00023435,2]
[388435823,1759168235095,-508.77672811,0.00023435,2]
[388435825,1759168235104,-480.0,0.00023435,2]
[388435826,1759168235115,-1258.84,0.00023435,2]
[388435827,1759168235130,-480.0,0.00023435,2]
[388435828,1759168235140,-480.0,0.00023435,2]
[388435829,1759168235150,-4814.07,0.00023435,2]
[388435830,1759168235160,-480.0,0.00023435,2]
[388435832,1759168235171,-480.0,0.00023435,2]
[388435833,1759168235182,-694.2,0.00023435,2]
[388435834,1759168235193,-1055.89,0.00023435,2]
[388435835,1759168235203,-480.0,0.00023435,2]
[388435836,1759168235213,-480.0,0.00023435,2]
[388435838,1759168235223,-918.69,0.00023435,2]
[388435839,1759168235233,-480.0,0.00023435,2]
[388435840,1759168235243,-480.0,0.00023435,2]
[388435841,1759168235253,-480.0,0.00023435,2]
[388435842,1759168235263,-2573.01,0.00023435,2]
[388435843,1759168235273,-500.0,0.00023435,2]
[388435845,1759168235283,-480.0,0.00023435,2]
[388435846,1759168235293,-480.0,0.00023435,2]
[388435847,1759168235303,-480.0,0.00023435,2]
[388435848,1759168235313,-696.63,0.00023435,2]
[388435849,1759168235323,-480.0,0.00023435,2]
[388435850,1759168235333,-480.0,0.00023435,2]
[388435852,1759168235343,-480.0,0.00023435,2]
[388435853,1759168235353,-480.0,0.00023435,2]
[388435854,1759168235363,-480.0,0.00023435,2]
[388435855,1759168235375,-480.0,0.00023435,2]
[388435856,1759168235385,-480.0,0.00023435,2]
[388435857,1759168235395,-501.88411338,0.00023435,2]
[388435859,1759168235405,-2025.26,0.00023435,2]
[388435860,1759168235416,-480.0,0.00023435,2]
[388435861,1759168235427,-480.0,0.00023435,2]
[388435862,1759168235438,-5608.8,0.00023435,2]
[388435863,1759168235450,-480.0,0.00023435,2]
[388435864,1759168235467,-480.0,0.00023435,2]
[388435866,1759168235487,-536.46,0.00023435,2]
[388435867,1759168235506,-873.4,0.00023435,2]
[388435868,1759168235523,-1297.92,0.00023436,2]
[388435869,1759168235533,-304.02810323,0.00023436,2]
[388435870,1759168235544,-566.8,0.00023436,2]
[388435872,1759168235554,-566.8,0.00023436,2]
[388435873,1759168235565,-566.8,0.00023436,2]
[388435874,1759168235576,-500.0,0.00023436,2]
[388435875,1759168235586,-520.0,0.00023436,2]
[388435876,1759168235596,-651.71,0.00023437,2]
[388435878,1759168235605,-697.75,0.00023437,2]
[388435879,1759168235615,-500.0,0.00023437,2]
[388435880,1759168235624,-500.0,0.00023437,2]
[388435881,1759168235634,-500.0,0.00023437,2]
[388435882,1759168235644,-151.0,0.00023437,2]
[388435883,1759168235654,-500.0,0.00023437,2]
[388435885,1759168235664,-500.0,0.00023437,2]
[388435886,1759168235674,-643.93,0.00023437,2]
[388435887,1759168235684,-151.0,0.00023437,2]
[388435888,1759168235694,-1169.7,0.00023437,2]
[388435889,1759168235704,-629.01,0.00023437,2]
[388435890,1759168235713,-649.28,0.00023437,2]
[388435892,1759168235723,-560.96,0.00023437,2]
[388435893,1759168235733,-1556.03971106,0.00023437,2]
[388435894,1759168235742,-500.0,0.00023437,2]
[388435895,1759168235752,-151.0,0.00023437,2]
[388435896,1759168235762,-500.0,0.00023437,2]
[388435897,1759168235771,-500.0,0.00023437,2]
[388435899,1759168235780,-480.0,0.00023437,2]
[388435900,1759168235790,-602.44,0.00023437,2]
[388435901,1759168235800,-480.19,0.00023437,2]
[388435902,1759168235811,-480.0,0.00023437,2]
[388435903,1759168235821,-555.56,0.00023437,2]
[388435904,1759168235831,-480.0,0.00023437,2]
[388435906,1759168235841,-480.0,0.00023437,2]
[388435907,1759168235850,-480.0,0.00023437,2]
[388435908,1759168235860,-749.46,0.00023437,2]
[388435909,1759168235876,-1824.22,0.00023437,2]
[388435910,1759168235886,-480.0,0.00023437,2]
[388435911,1759168235896,-922.94790442,0.00023437,2]
[388435913,1759168235907,-480.0,0.00023437,2]
[388435914,1759168235919,-2146.47885073,0.00023437,2]
[388435915,1759168235929,-4824.74783674,0.00023437,2]
[388435916,1759168235940,-655.39283627,0.00023437,2]
[388435917,1759168235951,-2621.57134509,0.00023437,2]
[388435919,1759168235962,-5892.63699093,0.00023437,2]
[388435920,1759168235971,-186.63715186,0.00023437,2]
[388435921,1759168235981,-745.80205885,0.00023437,2]
[388435922,1759168235991,-480.0,0.00023437,2]
[388435923,1759168236001,-500.0,0.00023437,2]
[388435924,1759168236011,-480.0,0.00023437,2]
[388435926,1759168236021,-1568.0,0.00023437,2]
[388435927,1759168236031,-151.0,0.00023437,2]
[388435928,1759168236041,-500.0,0.00023437,2]
[388435929,1759168236051,-500.0,0.00023437,2]
[388435930,1759168236062,-500.0,0.00023437,2]
[388435931,1759168236071,-151.0,0.00023437,2]
[388435933,1759168236081,-294.98545417,0.00023437,2]
[388435934,1759168236091,-158.67951241,0.00023437,2]
[388435935,1759168236101,-151.0,0.00023437,2]
[388435936,1759168236111,-151.0,0.00023437,2]
[388435937,1759168236121,-151.0,0.00023437,2]
[388435938,1759168236131,-500.0,0.00023437,2]
[388435939,1759168236140,-500.0,0.00023437,2]
[388435941,1759168236150,-500.0,0.00023437,2]
[388435942,1759168236159,-410.71261596,0.00023437,2]
[388435943,1759168236169,-1642.85046384,0.00023437,2]
[388435944,1759168236179,-3692.7171301,0.00023437,2]
[388435945,1759168236189,-151.0,0.00023437,2]
[388435946,1759168236198,-500.0,0.00023439,3]
[388435948,1759168236208,-520.0,0.00023439,3]
[388435949,1759168236217,-480.0,0.00023439,2]
[388435950,1759168236226,-480.0,0.00023439,2]
[388435951,1759168236236,-480.0,0.00023439,2]
[388435952,1759168236245,-480.0,0.00023439,2]
[388435953,1759168236254,-566.8,0.00023463,2]
[388435955,1759168236263,-566.8,0.00023496,2]
[388435956,1759168236272,-4670.04,0.00023497,3]
[388435957,1759168236281,-184.85,0.00023497,3]
[388435958,1759168236291,-554.6,0.00023497,3]
[388435959,1759168236300,-404.2877432,0.000235,2]
[388435960,1759168236309,-566.8,0.00023506,2]
[388435962,1759168236319,-500.0,0.00023507,2]
[388435963,1759168236328,-7128.93392328,0.00023507,2]
[388435964,1759168236338,-29694.79190934,0.00023507,2]
[388435965,1759168236348,-460.0,0.00023546,2]
[388435966,1759168236358,-409.24859238,0.00023548,2]
[388435967,1759168236367,-1478.81,0.0002358,3]
[388435968,1759168236376,-739.4,0.0002358,3]
[388435970,1759168236385,-369.7,0.0002358,3]
[388435971,1759168236395,-566.8,0.00023589,2]
[388435972,1759168236406,-1000.0,0.0002359,2]
[388435973,1759168236416,-1000.0,0.0002359,2]
[388435974,1759168236426,-1000.0,0.0002359,2]
[388435975,1759168236436,-1000.0,0.0002359,2]
[388435977,1759168236445,-1000.0,0.0002359,2]
[388435978,1759168236455,-1000.0,0.0002359,2]
[388435979,1759168236464,-1000.0,0.0002359,2]
[388435980,1759168236474,-1000.0,0.0002359,2]
[388435981,1759168236485,-151.0,0.0002359,2]
[388435983,1759168236496,-151.0,0.0002359,2]
[388435984,1759168236514,-1000.0,0.0002359,2]
[388435985,1759168236529,-1000.0,0.0002359,2]
[388435986,1759168236544,-1000.0,0.0002359,2]
[388435988,1759168236557,-151.0,0.0002359,2]
[388435989,1759168236568,-151.0,0.0002359,2]
[388435990,1759168236580,-1000.0,0.0002359,2]
[388435991,1759168236595,-151.0,0.0002359,2]
[388435992,1759168236608,-127.51248262,0.0002359,2]
[388435994,1759168236631,-872.48751738,0.0002359,2]
[388435995,1759168236645,-151.0,0.0002359,2]
[388435996,1759168236657,-500.0,0.0002359,2]
[388435998,1759168236671,-1000.0,0.0002359,2]
[388435999,1759168236684,-151.0,0.0002359,2]
[388436000,1759168236698,-1000.0,0.0002359,2]
[388436001,1759168236710,-151.0,0.0002359,2]
[388436002,1759168236723,-500.0,0.0002359,2]
[388436004,1759168236736,-1000.0,0.0002359,2]
[388436005,1759168236748,-1000.0,0.0002359,2]
[388436006,1759168236761,-500.0,0.0002359,2]